fUST/lending_fUST_20251214
["ID","MTS","AMOUNT","RATE_DAILY","PERIOD"]
[398475870,1765714971014,-200.0,0.00021917,30]
[398475871,1765714971045,-200.0,0.00021917,30]
[398475872,1765714971076,-200.0,0.00021917,30]
[398475873,1765714971138,-500.0,0.00021918,120]
[398475874,1765714971168,-300.0,0.00022,120]
[398475875,1765714971197,-5899.57632076,0.00022,20]
[398475876,1765714971233,-200.0,0.00022191,30]
[398475877,1765714971261,-200.0,0.00022191,30]
[398475878,1765714971288,-200.0,0.00022191,30]
[398475879,1765714971386,-324.82,0.000228,14]
[398475880,1765714971416,-864.0,0.00022816,10]
[398475881,1765714971448,-500.0,0.00023,120]
[398475882,1765714971551,-185.7068869,0.00023586,21]
[398475883,1765714971604,-110807.50494822,0.00024,60]
[398475884,1765714971631,-621.41,0.00024,14]
[398475885,1765714971660,-1000.0,0.00024,120]
[398475886,1765714971686,-500.0,0.000241,18]
[398475887,1765714971732,-198.08824625,0.000242,10]
[398475888,1765714971760,-324.82,0.000243,14]
[398475889,1765714971806,-168.0,0.00024603,13]
[398475890,1765714971849,-500.0,0.00024658,120]
[398475891,1765714971877,-702.14303395,0.000249,30]
[398475892,1765714971920,-282.22216872,0.00025,120]
[398475893,1765714971950,-2000.0,0.00025,120]
[398475894,1765714971977,-879.33436047,0.00025,120]
[398475895,1765714972006,-1000.0,0.00025098,10]
[398475896,1765714972064,-185.83,0.00025509,10]
[398475897,1765714972106,-324.82,0.000258,14]
[398475898,1765714972133,-204.17757559,0.00025804,30]
[398475899,1765714972160,-189.60441232,0.00025847,120]
[398475900,1765714972186,-3132.62,0.00025967,30]
[398475901,1765714972213,-2000.0,0.00026,120]
[398475902,1765714972254,-169.0,0.00026247,19]
[398475903,1765714972324,-1194.0,0.00027,30]
[398475904,1765714972351,-150.4043634,0.00027,120]
[398475905,1765714972377,-580.0,0.00027,30]
[398475906,1765714972403,-600.0,0.00027,14]
[398475907,1765714972430,-2000.0,0.00027,120]
[398475908,1765714972456,-500.0,0.00027,30]
[398475909,1765714972495,-172.64875307,0.0002731,30]
[398475910,1765714972522,-191.68158965,0.00027313,30]
[398475911,1765714972550,-200.37992909,0.00027313,30]
[398475912,1765714972576,-179.09111277,0.00027313,30]
[398475913,1765714972603,-21100.280552,0.0002734,10]
[398475914,1765714972629,-178.14137174,0.0002739,120]
[398475915,1765714972655,-200.0,0.00027396,30]
[398475916,1765714972682,-200.0,0.00027396,30]
[398475917,1765714972709,-200.0,0.00027396,30]
[398475918,1765714972739,-300.0,0.00027397,10]
[398475919,1765714972767,-300.0,0.00027397,10]
[398475920,1765714972792,-265.76683819,0.00027397,10]
[398475921,1765714973021,-500.0,0.00027397,15]
[398475922,1765714973049,-500.0,0.00027397,120]
[398475923,1765714973084,-2000.0,0.000274,120]
[398475924,1765714973116,-324.82,0.000274,14]
[398475925,1765714973147,-1000.0,0.00027608,30]
[398475926,1765714973180,-244.0,0.00027608,30]
[398475927,1765714973223,-397.9302561,0.00027671,30]
[398475928,1765714973249,-397.9302561,0.00027671,30]
[398475929,1765714973275,-397.9302561,0.00027671,30]
[398475930,1765714973301,-397.9302561,0.00027671,30]
[398475931,1765714973327,-354.599006,0.00027671,30]
[398475932,1765714973353,-200.0,0.00027739,30]
[398475933,1765714973380,-200.0,0.00027739,30]
[398475934,1765714973407,-200.0,0.00027739,30]
[398475935,1765714973435,-189.0,0.0002789,26]
[398475936,1765714973477,-500.0,0.00027945,15]
[398475937,1765714973505,-5000.0,0.00027995,30]
[398475938,1765714973533,-1000.0,0.00028,60]
[398475939,1765714973559,-2000.0,0.00028,120]
[398475940,1765714973586,-500.0,0.00028,30]
[398475941,1765714973621,-198.08824625,0.00028,30]
[398475942,1765714973647,-165.0,0.00028,14]
[398475943,1765714973686,-1100.0,0.00028304,14]
[398475944,1765714973712,-162.38676691,0.00028473,30]
[398475945,1765714973739,-508.44,0.00028493,15]
[398475946,1765714973767,-262.72,0.000285,60]
[398475947,1765714973794,-818951.47957899,0.00029,120]
[398475948,1765714973821,-1178.0,0.00029,120]
[398475949,1765714973847,-1000.0,0.00029,120]
[398475950,1765714973872,-1000.0,0.00029,120]
[398475951,1765714973898,-583.82366372,0.00029,20]
[398475952,1765714973923,-999.9999,0.00029,120]
[398475953,1765714973950,-200.0,0.00029,120]
[398475954,1765714973976,-324.82,0.00029,14]
[398475955,1765714974004,-1000.0,0.000295,120]
[398475956,1765714974031,-343.46475667,0.000295,120]
[398475957,1765714974056,-515.72,0.000295,30]
[398475958,1765714974084,-155.0,0.00029534,35]
[398475959,1765714974112,-1355.00609233,0.000298,120]
[398475960,1765714974140,-211.0,0.000298,12]
[398475961,1765714974170,-1100.0,0.00029948,14]
[398475962,1765714974199,-718.97487991,0.0003,120]
[398475963,1765714974225,-2071.07506709,0.0003,30]
[398475964,1765714974252,-116995.11568206,0.0003,30]
[398475965,1765714974279,-500.0,0.0003,120]
[398475966,1765714974305,-200.0,0.0003,120]
[398475967,1765714974331,-160.0,0.0003,14]
[398475968,1765714974360,-790.0,0.0003,30]
[398475969,1765714974385,-7165.25135062,0.0003,120]
[398475970,1765714974411,-410.86267261,0.0003,10]
[398475971,1765714974438,-366.9522104,0.0003,120]
[398475972,1765714974465,-526.5608957,0.0003,120]
[398475973,1765714974495,-1597.08089201,0.0003,10]
[398475974,1765714974522,-1189.0,0.0003,45]
[398475975,1765714974549,-1367.19022789,0.0003,120]
[398475976,1765714974579,-161.01406781,0.0003,60]
[398475977,1765714974605,-260.99848109,0.0003,120]
[398475978,1765714974632,-1000.0,0.0003,120]
[398475979,1765714974662,-347.15046531,0.0003,120]
[398475980,1765714974689,-175214.96359906,0.0003,30]
[398475981,1765714974716,-1396.40382993,0.0003,30]
[398475982,1765714974741,-248.27327091,0.0003,30]
[398475983,1765714974774,-198.08824625,0.0003,120]
[398475984,1765714974805,-1607.87,0.0003,60]
[398475985,1765714974843,-198.08824625,0.0003,30]
[398475986,1765714974871,-999.0,0.0003,120]
[398475987,1765714974898,-1067.25,0.0003,30]
[398475988,1765714974924,-1067.25,0.0003006,30]
[398475989,1765714974954,-1067.25,0.0003012,30]
[398475990,1765714974981,-874.73487063,0.0003013,15]
[398475991,1765714975007,-1000.0,0.00030136,120]
[398475992,1765714975036,-572.18345415,0.00030136,120]
[398475993,1765714975063,-500.0,0.00030137,120]
[398475994,1765714975090,-10015.84491862,0.00030137,120]
[398475995,1765714975119,-589.0531623,0.00030137,120]
[398475996,1765714975147,-1350.079786,0.00030137,120]
[398475997,1765714975174,-2000.0,0.00030137,120]
[398475998,1765714975200,-1000.0,0.00030164,120]
[398475999,1765714975225,-1067.25,0.0003018,30]
[398476000,1765714975251,-1000.0,0.00030191,120]
[398476001,1765714975280,-1000.0,0.00030219,120]
[398476002,1765714975313,-1067.25,0.0003024,30]
[398476003,1765714975342,-1000.0,0.00030246,120]
[398476004,1765714975370,-1000.0,0.00030273,120]
[398476005,1765714975398,-1067.25,0.000303,30]
[398476006,1765714975425,-1000.0,0.00030301,120]
[398476007,1765714975452,-1000.0,0.00030328,120]
[398476008,1765714975481,-1000.0,0.00030356,120]
[398476009,1765714975509,-1067.25,0.0003036,30]
[398476010,1765714975537,-1000.0,0.00030369,30]
[398476011,1765714975565,-492.0,0.00030369,30]
[398476012,1765714975591,-1000.0,0.00030383,120]
[398476013,1765714975785,-1000.0,0.0003041,120]
[398476014,1765714975816,-2000.0,0.00030411,120]
[398476015,1765714975841,-1067.25,0.0003042,30]
[398476016,1765714975867,-1000.0,0.00030438,120]
[398476017,1765714975892,-1000.0,0.00030465,120]
[398476018,1765714975918,-1067.25,0.0003048,30]
[398476019,1765714975943,-1000.0,0.00030493,120]
[398476020,1765714975969,-324.82,0.000305,14]
[398476021,1765714975995,-1000.0,0.0003052,120]
[398476022,1765714976021,-1067.25,0.0003054,30]
[398476023,1765714976047,-1000.0,0.00030547,120]
[398476024,1765714976075,-1000.0,0.00030575,120]
[398476025,1765714976101,-1067.25,0.000306,30]
[398476026,1765714976130,-1000.0,0.00030602,120]
[398476027,1765714976157,-1000.0,0.0003063,120]
[398476028,1765714976183,-1000.0,0.00030657,120]
[398476029,1765714976209,-1067.25,0.0003066,30]
[398476030,1765714976236,-1000.0,0.00030684,120]
[398476031,1765714976261,-2000.0,0.00030685,120]
[398476032,1765714976288,-2000.0,0.00030685,120]
[398476033,1765714976314,-2000.0,0.00030685,120]
[398476034,1765714976341,-1000.0,0.00030712,120]
[398476035,1765714976367,-1067.25,0.0003072,30]
[398476036,1765714976394,-1000.0,0.00030739,120]
[398476037,1765714976422,-614.74002476,0.00030767,120]
[398476038,1765714976451,-198.08824625,0.000309,30]
[398476039,1765714976483,-2000.0,0.00030959,120]
[398476040,1765714976512,-200.0,0.00031,120]
[398476041,1765714976539,-164.0,0.00031178,44]
[398476042,1765714976567,-2000.0,0.00031233,120]
[398476043,1765714976593,-2000.0,0.00031233,120]
[398476044,1765714976621,-2000.0,0.00031233,120]
[398476045,1765714976647,-700.0,0.000314,120]
[398476046,1765714976673,-397.9302561,0.00031507,30]
[398476047,1765714976700,-397.9302561,0.00031507,30]
[398476048,1765714976725,-397.9302561,0.00031507,30]
[398476049,1765714976751,-397.9302561,0.00031507,30]
[398476050,1765714976781,-397.9302561,0.00031507,30]
[398476051,1765714976809,-397.9302561,0.00031507,30]
[398476052,1765714976836,-397.9302561,0.00031507,30]
[398476053,1765714976862,-397.9302561,0.00031507,30]
[398476054,1765714976891,-397.9302561,0.00031507,30]
[398476055,1765714976919,-397.9302561,0.00031507,30]
[398476056,1765714976944,-397.9302561,0.00031507,30]
[398476057,1765714976973,-397.9302561,0.00031507,30]
[398476058,1765714976999,-397.9302561,0.00031507,30]
[398476059,1765714977024,-795.6243258,0.00031507,30]
[398476060,1765714977049,-397.9302561,0.00031507,30]
[398476061,1765714977074,-397.9302561,0.00031507,30]
[398476062,1765714977101,-2000.0,0.00031507,120]
[398476063,1765714977131,-1100.0,0.00031592,14]
[398476064,1765714977160,-2000.0,0.00031781,120]
[398476065,1765714977190,-2000.0,0.00031781,120]
[398476066,1765714977219,-2000.0,0.00031781,120]
[398476067,1765714977246,-1000.0,0.00032,120]
[398476068,1765714977273,-200.0,0.00032,120]
[398476069,1765714977299,-500.0,0.00032,120]
[398476070,1765714977326,-1000.0,0.00032,120]
[398476071,1765714977352,-258.62505353,0.00032,120]
[398476072,1765714977379,-2000.0,0.00032055,120]
[398476073,1765714977406,-873.33136749,0.00032079,34]
[398476074,1765714977433,-324.82,0.000322,14]
[398476075,1765714977459,-2000.0,0.00032329,120]
[398476076,1765714977485,-2000.0,0.00032329,120]
[398476077,1765714977514,-2000.0,0.00032329,120]
[398476078,1765714977540,-1000.0,0.000325,120]
[398476079,1765714977567,-2000.0,0.00032603,120]
[398476080,1765714977593,-200.0,0.00032876,120]
[398476081,1765714977620,-200.0,0.00032876,120]
[398476082,1765714977649,-200.0,0.00032876,120]
[398476083,1765714977676,-2346.39,0.00032876,120]
[398476084,1765714977706,-500.0,0.00032877,120]
[398476085,1765714977733,-391.980285,0.00032877,31]
[398476086,1765714977758,-391.980285,0.00032877,31]
[398476087,1765714977791,-391.980285,0.00032877,31]
[398476088,1765714977817,-391.980285,0.00032877,31]
[398476089,1765714977844,-391.980285,0.00032877,31]
[398476090,1765714977869,-391.980285,0.00032877,31]
[398476091,1765714977894,-391.980285,0.00032877,31]
[398476092,1765714977919,-391.980285,0.00032877,31]
[398476093,1765714977944,-391.980285,0.00032877,31]
[398476094,1765714977971,-391.980285,0.00032877,31]
[398476095,1765714977998,-391.980285,0.00032877,31]
[398476096,1765714978024,-391.980285,0.00032877,31]
[398476097,1765714978051,-391.980285,0.00032877,31]
[398476098,1765714978077,-391.980285,0.00032877,31]
[398476099,1765714978102,-391.980285,0.00032877,31]
[398476100,1765714978128,-391.980285,0.00032877,31]
[398476101,1765714978156,-391.980285,0.00032877,31]
[398476102,1765714978182,-391.980285,0.00032877,31]
[398476103,1765714978209,-391.980285,0.00032877,31]
[398476104,1765714978237,-391.980277,0.00032877,31]
[398476105,1765714978263,-179.050491,0.00032877,31]
[398476106,1765714978289,-179.050491,0.00032877,31]
[398476107,1765714978467,-179.050491,0.00032877,31]
[398476108,1765714978493,-179.050491,0.00032877,31]
[398476109,1765714978517,-179.050491,0.00032877,31]
[398476110,1765714978544,-179.050491,0.00032877,31]
[398476111,1765714978571,-179.050491,0.00032877,31]
[398476112,1765714978596,-179.050491,0.00032877,31]
[398476113,1765714978622,-179.050491,0.00032877,31]
[398476114,1765714978647,-179.050491,0.00032877,31]
[398476115,1765714978674,-179.050491,0.00032877,31]
[398476116,1765714978700,-179.050491,0.00032877,31]
[398476117,1765714978728,-179.050491,0.00032877,31]
[398476118,1765714978753,-179.050491,0.00032877,31]
[398476119,1765714978784,-179.050491,0.00032877,31]
[398476120,1765714978812,-179.050491,0.00032877,31]
[398476121,1765714978839,-179.050491,0.00032877,31]
[398476122,1765714978865,-179.050491,0.00032877,31]
[398476123,1765714978890,-179.050491,0.00032877,31]
[398476124,1765714978915,-179.050483,0.00032877,31]
[398476125,1765714978940,-1674.95,0.00032877,10]
[398476126,1765714978966,-302.2567273,0.00032877,30]
[398476127,1765714978992,-2000.0,0.00032877,120]
[398476128,1765714979017,-2000.0,0.00032877,120]
[398476129,1765714979042,-2000.0,0.00032877,120]
[398476130,1765714979070,-90108.22162052,0.00033,10]
[398476131,1765714979096,-1000.0,0.00033,120]
[398476132,1765714979122,-200.0,0.00033,120]
[398476133,1765714979148,-13535.87325519,0.00033,120]
[398476134,1765714979174,-6374.999999,0.00033,30]
[398476135,1765714979201,-1100.0,0.00033236,14]
[398476136,1765714979228,-338.59909925,0.00033261,30]
[398476137,1765714979254,-200.0,0.00033287,120]
[398476138,1765714979280,-200.0,0.00033287,120]
[398476139,1765714979306,-200.0,0.00033287,120]
[398476140,1765714979336,-362.74919279,0.00033287,120]
[398476141,1765714979363,-500.0,0.000333,120]
[398476142,1765714979394,-176.0,0.0003337,60]
[398476143,1765714979422,-1000.0,0.00033406,30]
[398476144,1765714979450,-791.0,0.00033406,30]
[398476145,1765714979475,-2000.0,0.00033425,120]
[398476146,1765714979501,-2000.0,0.00033425,120]
[398476147,1765714979526,-605.7007086,0.00033699,30]
[398476148,1765714979551,-597.5655512,0.00033699,30]
[398476149,1765714979576,-597.5655512,0.00033699,30]
[398476150,1765714979602,-302.2567273,0.00033699,30]
[398476151,1765714979627,-597.5655512,0.00033699,30]
[398476152,1765714979651,-302.2567273,0.00033699,30]
[398476153,1765714979676,-302.2567273,0.00033699,30]
[398476154,1765714979702,-302.2567273,0.00033699,30]
[398476155,1765714979727,-302.2567273,0.00033699,30]
[398476156,1765714979752,-302.2567273,0.00033699,30]
[398476157,1765714979782,-302.2567273,0.00033699,30]
[398476158,1765714979806,-302.2567273,0.00033699,30]
[398476159,1765714979832,-302.2567273,0.00033699,30]
[398476160,1765714979857,-302.2567273,0.00033699,30]
[398476161,1765714979883,-302.2567273,0.00033699,30]
[398476162,1765714979908,-302.2567273,0.00033699,30]
[398476163,1765714979933,-302.2567273,0.00033699,30]
[398476164,1765714979958,-604.3834772,0.00033699,30]
[398476165,1765714979984,-302.2567273,0.00033699,30]
[398476166,1765714980009,-302.2567273,0.00033699,30]
[398476167,1765714980037,-302.2567273,0.00033699,30]
[398476168,1765714980064,-3178.0,0.000337,60]
[398476169,1765714980092,-2500.0,0.000337,60]
[398476170,1765714980120,-2346.39,0.00033972,120]
[398476171,1765714980149,-2000.0,0.00033973,120]
[398476172,1765714980179,-2000.0,0.00033973,120]
[398476173,1765714980208,-1000.0,0.00034,120]
[398476174,1765714980237,-400.0,0.00034,120]
[398476175,1765714980265,-153.87458274,0.00034,120]
[398476176,1765714980291,-500.0,0.00034,120]
[398476177,1765714980317,-1000.0,0.00034,120]
[398476178,1765714980343,-43494.0,0.00034,120]
[398476179,1765714980371,-540.80095688,0.00034027,120]
[398476180,1765714980398,-200.0,0.0003443,38]
[398476181,1765714980426,-43720.09890716,0.000345,30]
[398476182,1765714980454,-330.7743164,0.00034521,30]
[398476183,1765714980480,-1194.0814046,0.00034521,30]
[398476184,1765714980505,-2000.0,0.00034521,120]
[398476185,1765714980531,-2000.0,0.00034521,120]
[398476186,1765714980558,-1377.06045981,0.00034728,12]
[398476187,1765714980585,-1100.0,0.0003488,14]
[398476188,1765714980611,-1075.88961075,0.00035,120]
[398476189,1765714980640,-2708.21650486,0.00035,30]
[398476190,1765714980666,-1000.0,0.00035,120]
[398476191,1765714980691,-400.0,0.00035,120]
[398476192,1765714980715,-250.0,0.00035,120]
[398476193,1765714980740,-1987.0,0.00035,120]
[398476194,1765714980768,-342.55,0.00035,60]
[398476195,1765714980795,-934.35168351,0.00035,120]
[398476196,1765714980822,-2231.64585983,0.00035,120]
[398476197,1765714980848,-325.14642597,0.00035,120]
[398476198,1765714980875,-216.63384309,0.00035,30]
[398476199,1765714980900,-1591.56501367,0.00035,120]
[398476200,1765714980926,-1200.0,0.00035,90]
[398476201,1765714980952,-240.0,0.00035,21]
[398476202,1765714981142,-150.0,0.00035,10]
[398476203,1765714981172,-150.0,0.00035,15]
[398476204,1765714981200,-150.0,0.00035,69]
[398476205,1765714981228,-1000.0,0.00035,120]
[398476206,1765714981255,-227.27503556,0.00035,30]
[398476207,1765714981281,-721.613402,0.00035,120]
[398476208,1765714981307,-178.0,0.00035,120]
[398476209,1765714981333,-2000.0,0.00035,120]
[398476210,1765714981360,-163.0,0.00035,120]
[398476211,1765714981387,-2000.0,0.00035068,120]
[398476212,1765714981415,-2000.0,0.00035068,120]
[398476213,1765714981444,-2000.0,0.00035068,120]
[398476214,1765714981472,-2346.39,0.00035068,120]
[398476215,1765714981498,-277.05494,0.000351,120]
[398476216,1765714981524,-243.88946,0.000351,120]
[398476217,1765714981550,-396.13845,0.000351,120]
[398476218,1765714981576,-200.0,0.000351,120]
[398476219,1765714981602,-261.48041,0.000351,120]
[398476220,1765714981628,-1350.079786,0.0003516,120]
[398476221,1765714981655,-2000.0,0.00035342,120]
[398476222,1765714981681,-979.3,0.00035435,60]
[398476223,1765714981708,-155.73,0.00035445,60]
[398476224,1765714981736,-164.20585584,0.00035445,60]
[398476225,1765714981764,-979.3,0.00035535,60]
[398476226,1765714981790,-155.73,0.00035545,60]
[398476227,1765714981816,-178.0,0.000356,120]
[398476229,1765714981841,-2000.0,0.00035616,120]
[398476230,1765714981868,-2000.0,0.00035616,120]
[398476231,1765714981893,-500.0,0.00035616,60]
[398476232,1765714981921,-500.0,0.00035616,60]
[398476233,1765714981948,-500.0,0.00035616,60]
[398476234,1765714981973,-500.0,0.00035616,60]
[398476235,1765714981997,-500.0,0.00035616,60]
[398476236,1765714982023,-500.0,0.00035616,60]
[398476237,1765714982048,-500.0,0.00035616,60]
[398476238,1765714982074,-500.0,0.00035616,60]
[398476239,1765714982100,-500.0,0.00035616,60]
[398476240,1765714982126,-500.0,0.00035616,60]
[398476241,1765714982152,-500.0,0.00035616,60]
[398476242,1765714982178,-500.0,0.00035616,60]
[398476243,1765714982204,-500.0,0.00035616,60]
[398476244,1765714982231,-500.0,0.00035616,60]
[398476245,1765714982257,-500.0,0.00035616,60]
[398476246,1765714982282,-500.0,0.00035616,60]
[398476247,1765714982308,-500.0,0.00035616,60]
[398476248,1765714982333,-500.0,0.00035616,60]
[398476249,1765714982358,-500.0,0.00035616,60]
[398476250,1765714982383,-500.0,0.00035616,60]
[398476251,1765714982408,-500.0,0.00035616,60]
[398476252,1765714982433,-500.0,0.00035616,60]
[398476253,1765714982459,-572.45267612,0.00035616,60]
[398476254,1765714982488,-837.0192885,0.00035616,120]
[398476255,1765714982515,-979.3,0.00035635,60]
[398476256,1765714982541,-155.73,0.00035645,60]
[398476257,1765714982569,-979.3,0.00035735,60]
[398476258,1765714982597,-155.73,0.00035745,60]
[398476259,1765714982626,-979.3,0.00035835,60]
[398476260,1765714982652,-155.73,0.00035845,60]
[398476261,1765714982681,-979.3,0.00035935,60]
[398476262,1765714982714,-155.73,0.00035945,60]
[398476263,1765714982750,-2000.0,0.00035998,30]
[398476264,1765714982801,-3000.0,0.00036,30]
[398476265,1765714982853,-1000.0,0.00036,120]
[398476266,1765714982902,-1000.0,0.00036,120]
[398476267,1765714982952,-400.0,0.00036,120]
[398476268,1765714983002,-500.0,0.00036,120]
[398476269,1765714983051,-29500.49968039,0.00036,30]
[398476270,1765714983102,-1035.2176569,0.00036,120]
[398476271,1765714983146,-9025.31,0.00036,14]
[398476272,1765714983180,-580.69610944,0.00036027,120]
[398476273,1765714983232,-979.3,0.00036035,60]
[398476274,1765714983282,-155.73,0.00036045,60]
[398476275,1765714983322,-190890.03917144,0.00036074,30]
[398476276,1765714985347,150.0,0.00010764,2]
[398476277,1765714985378,150.0,0.00011276,2]
[398476278,1765714985500,150.0,0.00011789,2]
[398476279,1765714986344,189.37,0.000134,2]
[398476280,1765714993659,-2132.77,0.00032877,10]
[398476281,1765714993690,-1997867.23,0.00036077,30]
[398476282,1765715002880,-162.77,0.000238,14]
[398476283,1765715003041,-162.77,0.00026,14]
[398476284,1765715003198,-162.77,0.000286,14]
[398476285,1765715003242,-162.77,0.000319,14]
[398476286,1765715003281,-1777.31,0.00032877,10]
[398476287,1765715003322,-162.77,0.000351,30]
[398476288,1765715003358,-1997408.84,0.00036077,30]
[398476289,1765715019729,-2000000.0,0.00036077,30]
[398476290,1765715025596,-915123.51112856,0.00036077,30]
[398476291,1765715025628,-979.3,0.00036135,60]
[398476292,1765715025656,-155.73,0.00036145,60]
[398476293,1765715025687,-2346.39,0.00036164,120]
[398476294,1765715025717,-178.0,0.000362,120]
[398476295,1765715025745,-979.3,0.00036235,60]
[398476296,1765715025773,-155.73,0.00036245,60]
[398476297,1765715025804,-979.3,0.00036335,60]
[398476298,1765715025831,-155.73,0.00036345,60]
[398476299,1765715025857,-244.62327574,0.00036377,16]
[398476300,1765715025886,-200.0,0.00036404,120]
[398476301,1765715025913,-979.3,0.00036435,60]
[398476302,1765715025940,-200.0,0.00036439,120]
[398476303,1765715025966,-791892.1423,0.0003644,30]
[398476304,1765715025992,-155.73,0.00036445,60]
[398476305,1765715026019,-902.38024945,0.000365,120]
[398476306,1765715026047,-200.0,0.00036521,120]
[398476307,1765715026075,-979.3,0.00036535,60]
[398476308,1765715026101,-155.73,0.00036545,60]
[398476309,1765715026128,-700.0,0.0003663,14]
[398476310,1765715026157,-979.3,0.00036635,60]
[398476311,1765715026185,-155.73,0.00036645,60]
[398476312,1765715026213,-173.0,0.00036658,91]
[398476313,1765715026240,-200.0,0.00036658,120]
[398476314,1765715026268,-200.0,0.00036725,120]
[398476315,1765715026298,-979.3,0.00036735,60]
[398476316,1765715026327,-155.73,0.00036745,60]
[398476317,1765715026356,-1000.0,0.00036746,30]
[398476318,1765715026385,-1000.0,0.00036746,30]
[398476319,1765715026412,-200.0,0.0003677,45]
[398476320,1765715026439,-200.0,0.00036777,120]
[398476321,1765715026466,-979.3,0.00036835,60]
[398476322,1765715026493,-155.73,0.00036845,60]
[398476323,1765715026520,-200.0,0.00036851,120]
[398476324,1765715026549,-200.0,0.00036868,120]
[398476325,1765715026580,-178.0,0.000369,120]
[398476326,1765715026613,-979.3,0.00036935,60]
[398476327,1765715026644,-155.73,0.00036945,60]
[398476328,1765715026673,-1000.0,0.00036986,120]
[398476329,1765715026699,-1000.0,0.00037,120]
[398476330,1765715026728,-400.0,0.00037,120]
[398476331,1765715026755,-1000.0,0.00037,120]
[398476332,1765715026786,-979.3,0.00037035,60]
[398476333,1765715026813,-155.73,0.00037045,60]
[398476334,1765715026840,-277.05494,0.000371,120]
[398476335,1765715026867,-200.0,0.000371,120]
[398476336,1765715026897,-979.3,0.00037135,60]
[398476337,1765715026925,-155.73,0.00037145,60]
[398476338,1765715026954,-2606.27,0.00037215,30]
[398476339,1765715026983,-979.3,0.00037235,60]
[398476340,1765715027009,-155.73,0.00037245,60]
[398476341,1765715027037,-2346.39,0.0003726,120]
[398476342,1765715027064,-397.9302561,0.0003726,30]
[398476343,1765715027090,-397.9302561,0.0003726,30]
[398476344,1765715027116,-397.9302561,0.0003726,30]
[398476345,1765715027144,-979.3,0.00037335,60]
[398476346,1765715027170,-155.73,0.00037345,60]
[398476347,1765715027197,-979.3,0.00037435,60]
[398476348,1765715027223,-155.73,0.00037445,60]
[398476349,1765715027253,-200.0,0.00037449,120]
[398476350,1765715027279,-700.0,0.00037452,14]
[398476351,1765715027511,-200.0,0.00037465,120]
[398476352,1765715027547,-1638.83539705,0.0003748,30]
[398476353,1765715027575,-5000.0,0.000375,50]
[398476354,1765715027603,-645.0,0.000375,120]
[398476355,1765715027630,-178.0,0.000375,120]
[398476356,1765715027656,-367.0,0.00037513,30]
[398476357,1765715027683,-979.3,0.00037535,60]
[398476358,1765715027708,-155.73,0.00037545,60]
[398476359,1765715027734,-979.3,0.00037635,60]
[398476360,1765715027760,-155.75359578,0.00037645,60]
[398476361,1765715027791,-500.0,0.000377,120]
[398476362,1765715027818,-200.0,0.00037716,120]
[398476363,1765715027844,-200.0,0.00037734,120]
[398476364,1765715027870,-979.3,0.00037735,60]
[398476365,1765715027895,-200.0,0.0003775,120]
[398476366,1765715027921,-1444.0,0.00037753,120]
[398476367,1765715027947,-200.0,0.00037768,120]
[398476368,1765715027972,-604.2967737,0.00037808,30]
[398476369,1765715027999,-200.0,0.00037834,120]
[398476370,1765715028028,-979.3,0.00037835,60]